[Event "December 12 Late 2023"]
[Site "https://www.chess.com"]
[Date "2023.12.12"]
[Round "5"]
[White "Rangel, Daniel"]
[Black "Nagare Kaivalya Sandip"]
[Result "0-1"]
[Board "65"]
[TimeControl "180+1"]
[WhiteFideId "2124475"]
[BlackFideId "25957929"]
[WhiteElo "2487"]
[BlackElo "2668"]
[WhiteTeam "BRA"]
[BlackTeam "IND"]
[WhiteClock "0:01:10"]
[BlackClock "0:01:16"]

1. c4 {[%clk 0:03:00]}  Nf6 {[%clk 0:02:59]} 2. g3 {[%clk 0:03:01]}  g6 {[%clk 0:02:59]} 3. Bg2 {[%clk 0:03:02]}  Bg7 {[%clk 0:03:00]} 4. Nc3 {[%clk 0:03:02]}  O-O {[%clk 0:03:00]} 5. e4 {[%clk 0:03:03]}  e5 {[%clk 0:02:59]} 6. Nge2 {[%clk 0:03:04]}  Nc6 {[%clk 0:02:59]} 7. O-O {[%clk 0:03:05]}  d6 {[%clk 0:02:59]} 8. d3 {[%clk 0:03:05]}  Bg4 {[%clk 0:02:59]} 9. h3 {[%clk 0:03:05]}  Be6 {[%clk 0:02:57]} 10. Be3 {[%clk 0:03:04]}  Qd7 {[%clk 0:02:57]} 11. Kh2 {[%clk 0:03:04]}  Nh5 {[%clk 0:02:57]} 12. g4 {[%clk 0:03:00]}  Nf6 {[%clk 0:02:53]} 13. f4 {[%clk 0:02:59]}  Bxg4 {[%clk 0:02:51]} 14. fxe5 {[%clk 0:02:47]}  Nxe5 {[%clk 0:02:51]} 15. Bg5 {[%clk 0:02:39]}  Bxe2 {[%clk 0:02:40]} 16. Qxe2 {[%clk 0:02:36]}  Nh5 {[%clk 0:02:40]} 17. Nd5 {[%clk 0:02:33]}  f6 {[%clk 0:02:29]} 18. Bh4 {[%clk 0:02:28]}  c6 {[%clk 0:02:23]} 19. Ne3 {[%clk 0:02:24]}  Rae8 {[%clk 0:02:19]} 20. Nf5 {[%clk 0:02:04]}  gxf5 {[%clk 0:01:32]} 21. Rxf5 {[%clk 0:01:57]}  Nf4 {[%clk 0:01:21]} 22. Rxf4 {[%clk 0:01:50]}  f5 {[%clk 0:01:22]} 23. Raf1 {[%clk 0:01:44]}  Ng6 {[%clk 0:01:19]} 24. Qh5 {[%clk 0:01:21]}  Nxf4 {[%clk 0:01:17]} 25. Rxf4 {[%clk 0:01:22]}  Be5 {[%clk 0:01:17]} 26. Qg5+ {[%clk 0:01:10]}  Qg7 {[%clk 0:01:16]} 27. Bg3 {[%clk 0:01:10]}  Qxg5 {[%clk 0:01:16]} 0-1

[Event "December 12 Late 2023"]
[Site "https://www.chess.com"]
[Date "2023.12.12"]
[Round "5"]
[White "Ladan, Nicholas"]
[Black "Ballester Llagaria, Luis Eduardo"]
[Result "1-0"]
[Board "74"]
[TimeControl "180+1"]
[WhiteFideId "30918855"]
[BlackFideId "2297620"]
[WhiteElo "2452"]
[BlackElo "2586"]
[WhiteTeam "USA"]
[BlackTeam "ESP"]
[WhiteClock "0:00:44"]
[BlackClock "0:00:10"]

1. d4 {[%clk 0:03:00]}  d5 {[%clk 0:02:59]} 2. Nf3 {[%clk 0:02:59]}  Nf6 {[%clk 0:02:59]} 3. Bf4 {[%clk 0:03:00]}  c5 {[%clk 0:02:59]} 4. e3 {[%clk 0:03:01]}  Nc6 {[%clk 0:02:59]} 5. Nbd2 {[%clk 0:03:01]}  Bf5 {[%clk 0:02:56]} 6. dxc5 {[%clk 0:03:00]}  e6 {[%clk 0:02:55]} 7. Nd4 {[%clk 0:03:00]}  Bg6 {[%clk 0:02:50]} 8. Bb5 {[%clk 0:02:58]}  Rc8 {[%clk 0:02:43]} 9. b4 {[%clk 0:02:57]}  Nd7 {[%clk 0:02:37]} 10. Nxc6 {[%clk 0:02:50]}  bxc6 {[%clk 0:02:38]} 11. Ba6 {[%clk 0:02:50]}  e5 {[%clk 0:02:36]} 12. Bxc8 {[%clk 0:02:49]}  Qxc8 {[%clk 0:02:37]} 13. Bg3 {[%clk 0:02:47]}  Be7 {[%clk 0:02:32]} 14. O-O {[%clk 0:02:46]}  O-O {[%clk 0:02:33]} 15. c4 {[%clk 0:02:39]}  Nf6 {[%clk 0:02:28]} 16. cxd5 {[%clk 0:02:37]}  Nxd5 {[%clk 0:02:27]} 17. Qb3 {[%clk 0:02:33]}  e4 {[%clk 0:02:12]} 18. Nc4 {[%clk 0:02:28]}  h5 {[%clk 0:02:04]} 19. Bd6 {[%clk 0:02:25]}  Re8 {[%clk 0:02:01]} 20. Bxe7 {[%clk 0:02:18]}  Rxe7 {[%clk 0:02:01]} 21. Nd6 {[%clk 0:02:17]}  Qg4 {[%clk 0:01:56]} 22. h3 {[%clk 0:02:05]}  Qg5 {[%clk 0:01:48]} 23. Rfd1 {[%clk 0:01:56]}  h4 {[%clk 0:01:43]} 24. b5 {[%clk 0:01:55]}  Bh5 {[%clk 0:01:43]} 25. Kh1 {[%clk 0:01:36]}  Bf3 {[%clk 0:01:18]} 26. gxf3 {[%clk 0:01:34]}  Qh5 {[%clk 0:01:18]} 27. Rg1 {[%clk 0:01:24]}  Qxf3+ {[%clk 0:01:19]} 28. Rg2 {[%clk 0:01:18]}  Re6 {[%clk 0:01:11]} 29. Kh2 {[%clk 0:01:01]}  Qf6 {[%clk 0:00:36]} 30. bxc6 {[%clk 0:00:56]}  Qe5+ {[%clk 0:00:31]} 31. Kg1 {[%clk 0:00:50]}  Qxa1+ {[%clk 0:00:31]} 32. Kh2 {[%clk 0:00:49]}  Qe5+ {[%clk 0:00:30]} 33. Kh1 {[%clk 0:00:49]}  Re8 {[%clk 0:00:10]} 34. Nxe8 {[%clk 0:00:44]} 1-0

[Event "December 12 Late 2023"]
[Site "https://www.chess.com"]
[Date "2023.12.12"]
[Round "5"]
[White "Liu, Casper"]
[Black "Assylov, Miras"]
[Result "1-0"]
[Board "77"]
[TimeControl "180+1"]
[WhiteFideId "1454153"]
[BlackFideId "13728873"]
[WhiteElo "2443"]
[BlackElo "2576"]
[WhiteTeam "DEN"]
[BlackTeam "KAZ"]
[WhiteClock "0:00:02"]
[BlackClock "0:00:00"]

1. f4 {[%clk 0:03:00]}  Nf6 {[%clk 0:02:44]} 2. Nf3 {[%clk 0:03:01]}  g6 {[%clk 0:02:45]} 3. e3 {[%clk 0:03:01]}  Bg7 {[%clk 0:02:46]} 4. g3 {[%clk 0:03:01]}  b6 {[%clk 0:02:45]} 5. Bg2 {[%clk 0:03:02]}  Bb7 {[%clk 0:02:46]} 6. O-O {[%clk 0:03:03]}  O-O {[%clk 0:02:46]} 7. d3 {[%clk 0:03:04]}  d6 {[%clk 0:02:46]} 8. Nc3 {[%clk 0:03:04]}  Nbd7 {[%clk 0:02:46]} 9. Qe2 {[%clk 0:02:59]}  e5 {[%clk 0:02:30]} 10. e4 {[%clk 0:02:49]}  Re8 {[%clk 0:02:30]} 11. h3 {[%clk 0:02:46]}  d5 {[%clk 0:02:27]} 12. fxe5 {[%clk 0:02:44]}  dxe4 {[%clk 0:02:17]} 13. dxe4 {[%clk 0:02:26]}  Nxe5 {[%clk 0:02:12]} 14. Nxe5 {[%clk 0:02:22]}  Rxe5 {[%clk 0:02:13]} 15. Bf4 {[%clk 0:02:22]}  Re6 {[%clk 0:02:03]} 16. Rad1 {[%clk 0:02:21]}  Qe8 {[%clk 0:01:59]} 17. Nb5 {[%clk 0:02:13]}  Ba6 {[%clk 0:01:54]} 18. c4 {[%clk 0:01:35]}  Bxb5 {[%clk 0:01:54]} 19. cxb5 {[%clk 0:01:36]}  Nxe4 {[%clk 0:01:49]} 20. Qc4 {[%clk 0:01:21]}  Rc8 {[%clk 0:01:40]} 21. b4 {[%clk 0:00:57]}  g5 {[%clk 0:01:27]} 22. Bxc7 {[%clk 0:00:23]}  Nc3 {[%clk 0:01:13]} 23. Bc6 {[%clk 0:00:20]}  Qe7 {[%clk 0:01:10]} 24. Rd7 {[%clk 0:00:20]}  Ne2+ {[%clk 0:00:23]} 25. Kh2 {[%clk 0:00:18]}  Nxg3 {[%clk 0:00:15]} 26. Rxe7 {[%clk 0:00:18]}  Nxf1+ {[%clk 0:00:14]} 27. Qxf1 {[%clk 0:00:18]}  Rxe7 {[%clk 0:00:14]} 28. Bd6 {[%clk 0:00:18]}  Be5+ {[%clk 0:00:14]} 29. Bxe5 {[%clk 0:00:18]}  Rxe5 {[%clk 0:00:15]} 30. Qf6 {[%clk 0:00:18]}  Re2+ {[%clk 0:00:12]} 31. Kg3 {[%clk 0:00:19]}  Re3+ {[%clk 0:00:06]} 32. Kg4 {[%clk 0:00:19]}  Rd3 {[%clk 0:00:03]} 33. Qxg5+ {[%clk 0:00:14]}  Kf8 {[%clk 0:00:03]} 34. Qh6+ {[%clk 0:00:13]}  Ke7 {[%clk 0:00:03]} 35. Kf5 {[%clk 0:00:13]}  Rd6 {[%clk 0:00:02]} 36. Qh4+ {[%clk 0:00:12]}  Kf8 {[%clk 0:00:02]} 37. Qxh7 {[%clk 0:00:12]}  Rcd8 {[%clk 0:00:02]} 38. Qh8+ {[%clk 0:00:12]}  Ke7 {[%clk 0:00:03]} 39. Qh4+ {[%clk 0:00:08]}  Kf8 {[%clk 0:00:03]} 40. Qh8+ {[%clk 0:00:09]}  Ke7 {[%clk 0:00:03]} 41. Qe5+ {[%clk 0:00:09]}  Kf8 {[%clk 0:00:04]} 42. h4 {[%clk 0:00:09]}  Rh6 {[%clk 0:00:03]} 43. Kg4 {[%clk 0:00:07]}  Rdd6 {[%clk 0:00:02]} 44. h5 {[%clk 0:00:06]}  Rde6 {[%clk 0:00:02]} 45. Qb8+ {[%clk 0:00:06]}  Kg7 {[%clk 0:00:03]} 46. Qf4 {[%clk 0:00:07]}  Ref6 {[%clk 0:00:02]} 47. Qg5+ {[%clk 0:00:07]}  Kf8 {[%clk 0:00:03]} 48. Qe5 {[%clk 0:00:07]}  Rd6 {[%clk 0:00:03]} 49. a4 {[%clk 0:00:06]}  Rhf6 {[%clk 0:00:02]} 50. Kg5 {[%clk 0:00:04]}  Rh6 {[%clk 0:00:02]} 51. Qe8+ {[%clk 0:00:04]}  Kg7 {[%clk 0:00:02]} 52. Qe7 {[%clk 0:00:04]}  Rdf6 {[%clk 0:00:02]} 53. Qxa7 {[%clk 0:00:04]}  Re6 {[%clk 0:00:01]} 54. Qa6 {[%clk 0:00:04]}  Re5+ {[%clk 0:00:01]} 55. Kf4 {[%clk 0:00:04]}  Rhxh5 {[%clk 0:00:02]} 56. Qxb6 {[%clk 0:00:05]}  Rhf5+ {[%clk 0:00:02]} 57. Kg4 {[%clk 0:00:05]}  Rg5+ {[%clk 0:00:03]} 58. Kf4 {[%clk 0:00:04]}  Rgf5+ {[%clk 0:00:03]} 59. Kg3 {[%clk 0:00:05]}  Rg5+ {[%clk 0:00:02]} 60. Kf2 {[%clk 0:00:06]}  Rg6 {[%clk 0:00:02]} 61. Qd4 {[%clk 0:00:05]}  Rf6+ {[%clk 0:00:02]} 62. Kg2 {[%clk 0:00:04]}  Rg5+ {[%clk 0:00:02]} 63. Kh3 {[%clk 0:00:02]}  Rh5+ {[%clk 0:00:02]} 64. Kg4 {[%clk 0:00:02]}  Rh6 {[%clk 0:00:00]} 65. Be4 {[%clk 0:00:02]} 1-0

[Event "December 12 Late 2023"]
[Site "https://www.chess.com"]
[Date "2023.12.12"]
[Round "5"]
[White "Bold, Andre"]
[Black "Espinoza Villanueva, Rodrigo"]
[Result "0-1"]
[Board "79"]
[TimeControl "180+1"]
[WhiteFideId "16208471"]
[BlackFideId "5140188"]
[WhiteElo "2441"]
[BlackElo "2566"]
[WhiteTeam "GER"]
[BlackTeam "MEX"]
[WhiteClock "0:00:00"]
[BlackClock "0:00:16"]

1. Nf3 {[%clk 0:03:00]}  Nf6 {[%clk 0:02:59]} 2. g3 {[%clk 0:03:01]}  d5 {[%clk 0:02:59]} 3. Bg2 {[%clk 0:03:01]}  g6 {[%clk 0:02:58]} 4. O-O {[%clk 0:03:02]}  Bg7 {[%clk 0:02:58]} 5. d4 {[%clk 0:03:01]}  O-O {[%clk 0:02:58]} 6. Ne5 {[%clk 0:03:01]}  Nfd7 {[%clk 0:02:57]} 7. Nxd7 {[%clk 0:02:59]}  Qxd7 {[%clk 0:02:56]} 8. Na3 {[%clk 0:02:57]}  c6 {[%clk 0:02:53]} 9. e3 {[%clk 0:02:53]}  Qc7 {[%clk 0:02:50]} 10. c4 {[%clk 0:02:52]}  Be6 {[%clk 0:02:50]} 11. cxd5 {[%clk 0:02:43]}  Bxd5 {[%clk 0:02:51]} 12. Bd2 {[%clk 0:02:36]}  Bxg2 {[%clk 0:02:48]} 13. Kxg2 {[%clk 0:02:37]}  h5 {[%clk 0:02:49]} 14. Bc3 {[%clk 0:02:24]}  Nd7 {[%clk 0:02:44]} 15. Nc4 {[%clk 0:02:17]}  h4 {[%clk 0:02:44]} 16. Qg4 {[%clk 0:02:11]}  hxg3 {[%clk 0:02:40]} 17. hxg3 {[%clk 0:02:10]}  c5 {[%clk 0:02:38]} 18. Rac1 {[%clk 0:01:36]}  Rad8 {[%clk 0:02:32]} 19. d5 {[%clk 0:01:17]}  Bxc3 {[%clk 0:02:24]} 20. Rxc3 {[%clk 0:01:18]}  Nf6 {[%clk 0:02:25]} 21. Qh4 {[%clk 0:01:12]}  Rxd5 {[%clk 0:02:24]} 22. g4 {[%clk 0:01:01]}  Qc6 {[%clk 0:02:16]} 23. f3 {[%clk 0:00:59]}  Rfd8 {[%clk 0:02:01]} 24. Rc2 {[%clk 0:00:44]}  b5 {[%clk 0:01:54]} 25. Rh1 {[%clk 0:00:39]}  Kf8 {[%clk 0:01:47]} 26. Qh6+ {[%clk 0:00:25]}  Ke8 {[%clk 0:01:44]} 27. e4 {[%clk 0:00:20]}  bxc4 {[%clk 0:01:22]} 28. exd5 {[%clk 0:00:20]}  Nxd5 {[%clk 0:01:23]} 29. Qh8+ {[%clk 0:00:18]}  Kd7 {[%clk 0:01:22]} 30. Qe5 {[%clk 0:00:19]}  e6 {[%clk 0:01:14]} 31. Rxc4 {[%clk 0:00:18]}  Qd6 {[%clk 0:01:12]} 32. Qxd6+ {[%clk 0:00:18]}  Kxd6 {[%clk 0:01:13]} 33. Re1 {[%clk 0:00:17]}  g5 {[%clk 0:01:09]} 34. Rc2 {[%clk 0:00:16]}  Rb8 {[%clk 0:01:06]} 35. Rd2 {[%clk 0:00:15]}  a5 {[%clk 0:01:04]} 36. Rc1 {[%clk 0:00:13]}  Rb4 {[%clk 0:00:56]} 37. a3 {[%clk 0:00:13]}  Rb3 {[%clk 0:00:55]} 38. Rc4 {[%clk 0:00:11]}  Kc6 {[%clk 0:00:45]} 39. Re4 {[%clk 0:00:11]}  Nf4+ {[%clk 0:00:42]} 40. Kg3 {[%clk 0:00:12]}  Nd3 {[%clk 0:00:31]} 41. Re3 {[%clk 0:00:12]}  c4 {[%clk 0:00:31]} 42. Rc2 {[%clk 0:00:10]}  Kd5 {[%clk 0:00:30]} 43. Re4 {[%clk 0:00:09]}  Nxb2 {[%clk 0:00:25]} 44. Rd2+ {[%clk 0:00:08]}  Rd3 {[%clk 0:00:25]} 45. Rxd3+ {[%clk 0:00:06]}  Nxd3 {[%clk 0:00:22]} 46. Re3 {[%clk 0:00:03]}  Kd4 {[%clk 0:00:22]} 47. Re4+ {[%clk 0:00:03]}  Kc3 {[%clk 0:00:22]} 48. Kg2 {[%clk 0:00:04]}  Kb3 {[%clk 0:00:22]} 49. Kf1 {[%clk 0:00:04]}  c3 {[%clk 0:00:22]} 50. Re3 {[%clk 0:00:03]}  Nb2 {[%clk 0:00:17]} 51. Ke2 {[%clk 0:00:03]}  Nc4 {[%clk 0:00:16]} 52. Re5 {[%clk 0:00:00]}  Nxe5 {[%clk 0:00:16]} 0-1

[Event "December 12 Late 2023"]
[Site "https://www.chess.com"]
[Date "2023.12.12"]
[Round "5"]
[White "Avila Rodriguez, Joshua Ad"]
[Black "Santos Flores, Alberto"]
[Result "1-0"]
[Board "82"]
[TimeControl "180+1"]
[WhiteFideId "5126444"]
[BlackFideId "3601234"]
[WhiteElo "2417"]
[BlackElo "2553"]
[WhiteTeam "MEX"]
[BlackTeam "ECU"]
[WhiteClock "0:00:03"]
[BlackClock "0:00:00"]

1. e4 {[%clk 0:02:45]}  e6 {[%clk 0:02:59]} 2. d4 {[%clk 0:02:43]}  d5 {[%clk 0:02:59]} 3. e5 {[%clk 0:02:43]}  c5 {[%clk 0:02:59]} 4. c3 {[%clk 0:02:44]}  Qb6 {[%clk 0:02:59]} 5. Nf3 {[%clk 0:02:44]}  Nc6 {[%clk 0:03:00]} 6. a3 {[%clk 0:02:43]}  a5 {[%clk 0:03:00]} 7. Bd3 {[%clk 0:02:42]}  Bd7 {[%clk 0:03:00]} 8. Bc2 {[%clk 0:02:42]}  a4 {[%clk 0:03:00]} 9. O-O {[%clk 0:02:42]}  Nh6 {[%clk 0:02:59]} 10. Re1 {[%clk 0:02:33]}  Nf5 {[%clk 0:02:58]} 11. Bxf5 {[%clk 0:02:20]}  exf5 {[%clk 0:02:58]} 12. c4 {[%clk 0:02:19]}  dxc4 {[%clk 0:01:56]} 13. d5 {[%clk 0:02:18]}  Nd4 {[%clk 0:01:57]} 14. Nc3 {[%clk 0:01:18]}  Be7 {[%clk 0:01:49]} 15. Rb1 {[%clk 0:01:09]}  O-O {[%clk 0:01:47]} 16. Be3 {[%clk 0:01:10]}  Nb3 {[%clk 0:01:32]} 17. Qe2 {[%clk 0:01:09]}  Bb5 {[%clk 0:01:21]} 18. Rbd1 {[%clk 0:01:03]}  Rfe8 {[%clk 0:01:17]} 19. Nd2 {[%clk 0:00:58]}  Nd4 {[%clk 0:01:08]} 20. Bxd4 {[%clk 0:00:30]}  cxd4 {[%clk 0:01:09]} 21. Nxb5 {[%clk 0:00:30]}  Qxb5 {[%clk 0:01:09]} 22. Qxc4 {[%clk 0:00:28]}  Qxb2 {[%clk 0:01:05]} 23. d6 {[%clk 0:00:21]}  Bf8 {[%clk 0:01:05]} 24. Nf3 {[%clk 0:00:21]}  Qxa3 {[%clk 0:00:56]} 25. Rb1 {[%clk 0:00:17]}  Qc3 {[%clk 0:00:49]} 26. Qd5 {[%clk 0:00:14]}  Qc6 {[%clk 0:00:23]} 27. Qxc6 {[%clk 0:00:14]}  bxc6 {[%clk 0:00:23]} 28. Nxd4 {[%clk 0:00:15]}  c5 {[%clk 0:00:22]} 29. Nb5 {[%clk 0:00:15]}  Reb8 {[%clk 0:00:20]} 30. Nc7 {[%clk 0:00:13]}  Rxb1 {[%clk 0:00:19]} 31. Rxb1 {[%clk 0:00:14]}  Rd8 {[%clk 0:00:16]} 32. Ra1 {[%clk 0:00:14]}  f6 {[%clk 0:00:16]} 33. f4 {[%clk 0:00:13]}  g5 {[%clk 0:00:13]} 34. g3 {[%clk 0:00:13]}  gxf4 {[%clk 0:00:13]} 35. gxf4 {[%clk 0:00:14]}  fxe5 {[%clk 0:00:13]} 36. fxe5 {[%clk 0:00:15]}  Bxd6 {[%clk 0:00:13]} 37. exd6 {[%clk 0:00:15]}  Rxd6 {[%clk 0:00:13]} 38. Rxa4 {[%clk 0:00:15]}  Rc6 {[%clk 0:00:14]} 39. Nd5 {[%clk 0:00:15]}  c4 {[%clk 0:00:14]} 40. Nc3 {[%clk 0:00:14]}  Kf7 {[%clk 0:00:14]} 41. Ra5 {[%clk 0:00:15]}  Ke6 {[%clk 0:00:13]} 42. Kf2 {[%clk 0:00:16]}  Rb6 {[%clk 0:00:12]} 43. Ke3 {[%clk 0:00:07]}  Rb2 {[%clk 0:00:10]} 44. Ra2 {[%clk 0:00:03]}  Rb3 {[%clk 0:00:08]} 45. Kd4 {[%clk 0:00:03]}  Rb4 {[%clk 0:00:08]} 46. Ra6+ {[%clk 0:00:03]}  Kf7 {[%clk 0:00:07]} 47. h4 {[%clk 0:00:03]}  Rb2 {[%clk 0:00:05]} 48. Kxc4 {[%clk 0:00:03]}  Rh2 {[%clk 0:00:04]} 49. Ra7+ {[%clk 0:00:01]}  Kg6 {[%clk 0:00:04]} 50. Ra6+ {[%clk 0:00:02]}  Kg7 {[%clk 0:00:04]} 51. Nd5 {[%clk 0:00:02]}  Rxh4+ {[%clk 0:00:04]} 52. Kc5 {[%clk 0:00:03]}  Re4 {[%clk 0:00:04]} 53. Kd6 {[%clk 0:00:03]}  h5 {[%clk 0:00:02]} 54. Ra2 {[%clk 0:00:03]}  Kh6 {[%clk 0:00:01]} 55. Rg2 {[%clk 0:00:03]}  h4 {[%clk 0:00:00]} 56. Ne7 {[%clk 0:00:03]} 1-0

[Event "December 12 Late 2023"]
[Site "https://www.chess.com"]
[Date "2023.12.12"]
[Round "5"]
[White "Melikhov, Evgeny V."]
[Black "Keleberda, Tymur"]
[Result "0-1"]
[Board "83"]
[TimeControl "180+1"]
[WhiteFideId "4122046"]
[BlackFideId "14174294"]
[WhiteElo "2415"]
[BlackElo "2547"]
[WhiteTeam "GRE"]
[BlackTeam "CAN"]
[WhiteClock "0:00:00"]
[BlackClock "0:00:10"]

1. d4 {[%clk 0:03:00]}  Nf6 {[%clk 0:02:59]} 2. c4 {[%clk 0:03:00]}  e6 {[%clk 0:02:51]} 3. Nc3 {[%clk 0:03:00]}  Bb4 {[%clk 0:02:50]} 4. Qc2 {[%clk 0:02:59]}  d6 {[%clk 0:02:50]} 5. e4 {[%clk 0:02:57]}  Bxc3+ {[%clk 0:02:48]} 6. bxc3 {[%clk 0:02:56]}  Nfd7 {[%clk 0:02:06]} 7. Nf3 {[%clk 0:02:51]}  Nc6 {[%clk 0:02:06]} 8. a4 {[%clk 0:02:44]}  Na5 {[%clk 0:02:05]} 9. c5 {[%clk 0:02:28]}  dxc5 {[%clk 0:02:02]} 10. Ba3 {[%clk 0:02:25]}  O-O {[%clk 0:01:37]} 11. dxc5 {[%clk 0:02:06]}  Nc6 {[%clk 0:01:37]} 12. Bb5 {[%clk 0:01:59]}  Ne7 {[%clk 0:01:07]} 13. O-O {[%clk 0:01:43]}  c6 {[%clk 0:01:07]} 14. Bd3 {[%clk 0:01:28]}  Ng6 {[%clk 0:01:07]} 15. Rfd1 {[%clk 0:01:25]}  Qe7 {[%clk 0:01:07]} 16. Qe2 {[%clk 0:01:18]}  Nf4 {[%clk 0:00:58]} 17. Qe3 {[%clk 0:01:17]}  Nxd3 {[%clk 0:00:57]} 18. Rxd3 {[%clk 0:01:16]}  e5 {[%clk 0:00:54]} 19. Rad1 {[%clk 0:01:02]}  h6 {[%clk 0:00:47]} 20. Rd6 {[%clk 0:00:54]}  Nf6 {[%clk 0:00:43]} 21. h3 {[%clk 0:00:44]}  Be6 {[%clk 0:00:41]} 22. Nxe5 {[%clk 0:00:33]}  Bb3 {[%clk 0:00:41]} 23. Rb1 {[%clk 0:00:33]}  Bxa4 {[%clk 0:00:37]} 24. Nc4 {[%clk 0:00:15]}  Qxe4 {[%clk 0:00:32]} 25. Qxe4 {[%clk 0:00:10]}  Nxe4 {[%clk 0:00:32]} 26. Rd7 {[%clk 0:00:09]}  Nxc3 {[%clk 0:00:33]} 27. Rbxb7 {[%clk 0:00:05]}  Bc2 {[%clk 0:00:20]} 28. Nd6 {[%clk 0:00:05]}  Bg6 {[%clk 0:00:19]} 29. Rxa7 {[%clk 0:00:04]}  Rxa7 {[%clk 0:00:18]} 30. Rxa7 {[%clk 0:00:05]}  Rb8 {[%clk 0:00:13]} 31. f3 {[%clk 0:00:04]}  Ne2+ {[%clk 0:00:12]} 32. Kf2 {[%clk 0:00:04]}  Nd4 {[%clk 0:00:12]} 33. Rb7 {[%clk 0:00:03]}  Ra8 {[%clk 0:00:12]} 34. Bb2 {[%clk 0:00:03]}  Ra2 {[%clk 0:00:12]} 35. Ke3 {[%clk 0:00:02]}  Ne6 {[%clk 0:00:12]} 36. g4 {[%clk 0:00:02]}  Nxc5 {[%clk 0:00:12]} 37. Rb8+ {[%clk 0:00:02]}  Kh7 {[%clk 0:00:12]} 38. Bd4 {[%clk 0:00:02]}  Ne6 {[%clk 0:00:12]} 39. Bc3 {[%clk 0:00:01]}  Ra3 {[%clk 0:00:12]} 40. Kf2 {[%clk 0:00:01]}  Rxc3 {[%clk 0:00:12]} 41. f4 {[%clk 0:00:00]}  Rc2+ {[%clk 0:00:10]} 0-1

[Event "December 12 Late 2023"]
[Site "https://www.chess.com"]
[Date "2023.12.12"]
[Round "5"]
[White "Zeneli, Klendi"]
[Black "Asish Panda"]
[Result "0-1"]
[Board "84"]
[TimeControl "180+1"]
[WhiteFideId "4706609"]
[BlackFideId "45012458"]
[WhiteElo "2408"]
[BlackElo "2537"]
[WhiteTeam "ALB"]
[BlackTeam "IND"]
[WhiteClock "0:00:32"]
[BlackClock "0:00:09"]

1. e4 {[%clk 0:03:00]}  e6 {[%clk 0:02:54]} 2. d4 {[%clk 0:02:58]}  d5 {[%clk 0:02:51]} 3. Nd2 {[%clk 0:02:54]}  c5 {[%clk 0:02:46]} 4. Ngf3 {[%clk 0:02:53]}  cxd4 {[%clk 0:02:37]} 5. Nxd4 {[%clk 0:02:52]}  Nc6 {[%clk 0:02:31]} 6. Bb5 {[%clk 0:02:51]}  Bd7 {[%clk 0:02:30]} 7. Nxc6 {[%clk 0:02:52]}  bxc6 {[%clk 0:02:30]} 8. Bd3 {[%clk 0:02:53]}  Bd6 {[%clk 0:02:31]} 9. O-O {[%clk 0:02:52]}  Ne7 {[%clk 0:02:31]} 10. Qe2 {[%clk 0:02:51]}  Ng6 {[%clk 0:02:28]} 11. Nf3 {[%clk 0:02:51]}  O-O {[%clk 0:02:22]} 12. e5 {[%clk 0:02:49]}  Be7 {[%clk 0:02:17]} 13. g3 {[%clk 0:02:47]}  c5 {[%clk 0:02:10]} 14. c4 {[%clk 0:02:46]}  Bc6 {[%clk 0:02:09]} 15. h4 {[%clk 0:02:44]}  Re8 {[%clk 0:02:02]} 16. h5 {[%clk 0:02:40]}  Nf8 {[%clk 0:02:02]} 17. Bf4 {[%clk 0:02:38]}  Rb8 {[%clk 0:01:51]} 18. b3 {[%clk 0:02:35]}  Nd7 {[%clk 0:01:45]} 19. Nh2 {[%clk 0:02:25]}  f5 {[%clk 0:01:34]} 20. cxd5 {[%clk 0:02:04]}  Bxd5 {[%clk 0:01:31]} 21. Bc4 {[%clk 0:02:04]}  Nb6 {[%clk 0:01:29]} 22. Bxd5 {[%clk 0:02:03]}  Nxd5 {[%clk 0:01:28]} 23. Bd2 {[%clk 0:01:54]}  Bg5 {[%clk 0:01:23]} 24. Nf3 {[%clk 0:01:52]}  Bxd2 {[%clk 0:01:22]} 25. Qxd2 {[%clk 0:01:52]}  Qe7 {[%clk 0:01:20]} 26. Rac1 {[%clk 0:01:49]}  Rbc8 {[%clk 0:01:15]} 27. Rc4 {[%clk 0:01:47]}  f4 {[%clk 0:01:06]} 28. g4 {[%clk 0:01:43]}  h6 {[%clk 0:00:57]} 29. Kg2 {[%clk 0:01:41]}  Red8 {[%clk 0:00:55]} 30. Qc2 {[%clk 0:01:32]}  Qb7 {[%clk 0:00:54]} 31. Qe4 {[%clk 0:01:29]}  Rf8 {[%clk 0:00:49]} 32. Nh4 {[%clk 0:01:25]}  f3+ {[%clk 0:00:46]} 33. Kh2 {[%clk 0:01:20]}  Rf4 {[%clk 0:00:44]} 34. Qg6 {[%clk 0:01:20]}  Qe7 {[%clk 0:00:38]} 35. Kg3 {[%clk 0:01:11]}  Rcf8 {[%clk 0:00:34]} 36. Rd1 {[%clk 0:01:00]}  Rxc4 {[%clk 0:00:18]} 37. bxc4 {[%clk 0:01:00]}  Nf4 {[%clk 0:00:19]} 38. Qe4 {[%clk 0:00:57]}  Qg5 {[%clk 0:00:17]} 39. Nxf3 {[%clk 0:00:48]}  Nxh5+ {[%clk 0:00:16]} 40. Kh2 {[%clk 0:00:47]}  Rxf3 {[%clk 0:00:10]} 41. Qxf3 {[%clk 0:00:43]}  Qxe5+ {[%clk 0:00:10]} 42. Kg1 {[%clk 0:00:43]}  Nf4 {[%clk 0:00:10]} 43. Qe3 {[%clk 0:00:37]}  Qg5 {[%clk 0:00:09]} 44. f3 {[%clk 0:00:34]}  Nh3+ {[%clk 0:00:08]} 45. Kg2 {[%clk 0:00:34]}  Qxe3 {[%clk 0:00:08]} 46. Kxh3 {[%clk 0:00:32]}  Qxf3+ {[%clk 0:00:09]} 0-1